fUST/lending_fUST_20250522
["ID","MTS","AMOUNT","RATE_DAILY","PERIOD"]
[361903550,1747878640282,-430.0,0.00023561,2]
[361903551,1747878640291,-1136.78,0.00023561,2]
[361903552,1747878640301,-430.0,0.00023561,2]
[361903553,1747878640310,-430.0,0.00023561,2]
[361903554,1747878640320,-430.0,0.00023561,2]
[361903555,1747878640329,-430.0,0.00023561,2]
[361903556,1747878640339,-430.0,0.00023561,2]
[361903558,1747878640349,-1491.79,0.00023561,2]
[361903559,1747878640358,-430.0,0.00023561,2]
[361903560,1747878640367,-538.41,0.00023561,2]
[361903561,1747878640377,-430.0,0.00023561,2]
[361903562,1747878640388,-728.37,0.00023561,2]
[361903563,1747878640397,-246.97895509,0.00023561,2]
[361903564,1747878640407,-793.2,0.00023561,2]
[361903565,1747878640416,-384.06184347,0.00023561,2]
[361903566,1747878640426,-430.0,0.00023561,2]
[361903567,1747878640436,-430.0,0.00023561,2]
[361903568,1747878640445,-430.0,0.00023561,2]
[361903569,1747878640455,-709.09,0.00023561,2]
[361903570,1747878640464,-1619.68,0.00023561,2]
[361903571,1747878640474,-1655.01762931,0.00023624,9]
[361903572,1747878640484,-666.50720526,0.000237,120]
[361903573,1747878640493,-154.72,0.00023766,90]
[361903575,1747878640502,-1655.01762931,0.00023797,9]
[361903577,1747878640512,-436.74149849,0.00023835,2]
[361903578,1747878640521,-688.4,0.00023835,2]
[361903579,1747878640530,-430.0,0.00023835,2]
[361903581,1747878640540,-450.42,0.00023835,2]
[361903582,1747878640549,-430.0,0.00023835,2]
[361903584,1747878640559,-462.25,0.00023835,2]
[361903585,1747878640569,-430.0,0.00023835,2]
[361903586,1747878640578,-430.0,0.00023835,2]
[361903588,1747878640589,-430.0,0.00023835,2]
[361903590,1747878640598,-1061.8,0.00023835,2]
[361903591,1747878640607,-430.0,0.00023835,2]
[361903592,1747878640617,-430.0,0.00023835,2]
[361903593,1747878640626,-430.62216579,0.00023835,2]
[361903594,1747878640637,-1136.78,0.00023835,2]
[361903595,1747878640647,-430.0,0.00023835,2]
[361903596,1747878640656,-430.0,0.00023835,2]
[361903597,1747878640666,-430.0,0.00023835,2]
[361903598,1747878640675,-430.0,0.00023835,2]
[361903599,1747878640684,-430.0,0.00023835,2]
[361903600,1747878640694,-1491.79,0.00023835,2]
[361903601,1747878640703,-430.0,0.00023835,2]
[361903602,1747878640713,-538.41,0.00023835,2]
[361903603,1747878640723,-430.0,0.00023835,2]
[361903604,1747878640733,-728.37,0.00023835,2]
[361903605,1747878640744,-793.2,0.00023835,2]
[361903606,1747878640753,-430.0,0.00023835,2]
[361903607,1747878640763,-430.0,0.00023835,2]
[361903608,1747878640773,-306.39830184,0.00023835,2]
[361903609,1747878640782,-709.09,0.00023835,2]
[361903611,1747878640792,-1619.68,0.00023835,2]
[361903612,1747878640801,-1000.0,0.0002388,2]
[361903613,1747878640810,-1680.0,0.00023928,2]
[361903614,1747878640820,-3196.77559562,0.00023939,2]
[361903615,1747878640829,-1655.01762931,0.00023969,10]
[361903616,1747878640838,-631.44783,0.00024,2]
[361903617,1747878640850,-1500.0,0.00024,2]
[361903618,1747878640859,-156.21830701,0.00024064,2]
[361903619,1747878640868,-160.85234695,0.00024108,2]
[361903620,1747878640877,-199.124257,0.00024108,7]
[361903621,1747878640889,-199.124257,0.00024108,7]
[361903622,1747878640899,-688.4,0.00024109,2]
[361903623,1747878640908,-430.0,0.00024109,2]
[361903624,1747878640918,-450.42,0.00024109,2]
[361903625,1747878640928,-265.14036711,0.00024109,2]
[361903626,1747878640941,-206.38915699,0.00024109,2]
[361903627,1747878640951,-462.25,0.00024109,2]
[361903628,1747878640960,-430.0,0.00024109,2]
[361903629,1747878640969,-430.0,0.00024109,2]
[361903630,1747878640979,-430.0,0.00024109,2]
[361903631,1747878640988,-409.24791838,0.00024109,2]
[361903632,1747878641000,-652.55208162,0.00024109,2]
[361903633,1747878641010,-430.0,0.00024109,2]
[361903634,1747878641019,-430.0,0.00024109,2]
[361903635,1747878641029,-1136.78,0.00024109,2]
[361903636,1747878641039,-430.0,0.00024109,2]
[361903637,1747878641048,-430.0,0.00024109,2]
[361903638,1747878641058,-430.0,0.00024109,2]
[361903639,1747878641067,-445.58095488,0.00024109,2]
[361903640,1747878641077,-430.0,0.00024109,2]
[361903641,1747878641086,-1491.79,0.00024109,2]
[361903642,1747878641095,-67.51483718,0.00024109,2]
[361903643,1747878641107,-319.54686517,0.00024109,2]
[361903644,1747878641119,-42.93829765,0.00024109,2]
[361903645,1747878641128,-538.41,0.00024109,2]
[361903646,1747878641144,-443.7637785,0.00024109,2]
[361903647,1747878641155,-154.46626098,0.00024109,2]
[361903648,1747878641167,-573.90373902,0.00024109,2]
[361903649,1747878641177,-430.0,0.00024109,2]
[361903650,1747878641187,-793.2,0.00024109,2]
[361903651,1747878641197,-430.0,0.00024109,2]
[361903652,1747878641206,-709.09,0.00024109,2]
[361903653,1747878641216,-1619.68,0.00024109,2]
[361903654,1747878641226,-1655.01762931,0.00024141,10]
[361903655,1747878641235,-160.049237,0.00024192,8]
[361903656,1747878641245,-1655.01762931,0.00024314,10]
[361903657,1747878641255,-317.40224,0.00024382,7]
[361903658,1747878641265,-317.40224,0.00024382,7]
[361903659,1747878641275,-688.4,0.00024383,2]
[361903660,1747878641284,-430.0,0.00024383,2]
[361903661,1747878641294,-450.42,0.00024383,2]
[361903662,1747878641304,-462.25,0.00024383,2]
[361903663,1747878641314,-430.0,0.00024383,2]
[361903664,1747878641323,-430.0,0.00024383,2]
[361903665,1747878641332,-430.0,0.00024383,2]
[361903666,1747878641342,-1061.8,0.00024383,2]
[361903667,1747878641352,-430.0,0.00024383,2]
[361903668,1747878641361,-430.0,0.00024383,2]
[361903669,1747878641370,-1136.78,0.00024383,2]
[361903670,1747878641379,-430.0,0.00024383,2]
[361903671,1747878641392,-430.0,0.00024383,2]
[361903672,1747878641401,-430.0,0.00024383,2]
[361903673,1747878641410,-430.0,0.00024383,2]
[361903674,1747878641420,-1491.79,0.00024383,2]
[361903675,1747878641429,-430.0,0.00024383,2]
[361903676,1747878641439,-538.41,0.00024383,2]
[361903677,1747878641448,-728.37,0.00024383,2]
[361903678,1747878641457,-430.0,0.00024383,2]
[361903679,1747878641467,-793.2,0.00024383,2]
[361903680,1747878641476,-430.0,0.00024383,2]
[361903681,1747878641485,-709.09,0.00024383,2]
[361903682,1747878641495,-1619.68,0.00024383,2]
[361903683,1747878641504,-714.589444,0.00024401,2]
[361903684,1747878641513,-1655.01762931,0.00024486,11]
[361903685,1747878641523,-151.0,0.000245,8]
[361903686,1747878641532,-30748.594,0.000245,30]
[361903687,1747878641541,-44103.0,0.000245,2]
[361903688,1747878641551,-151.0,0.000245,7]
[361903689,1747878641561,-151.0,0.000245,7]
[361903690,1747878641571,-151.0,0.000245,7]
[361903691,1747878641580,-151.0,0.000245,7]
[361903692,1747878641590,-151.0,0.000245,7]
[361903693,1747878641599,-151.0,0.000245,7]
[361903694,1747878641610,-151.0,0.000245,7]
[361903695,1747878641619,-151.0,0.000245,7]
[361903696,1747878641629,-151.0,0.000245,7]
[361903697,1747878641641,-540.769189,0.000245,7]
[361903698,1747878641650,-540.769189,0.000245,7]
[361903699,1747878641659,-151.0,0.000245,7]
[361903700,1747878641668,-151.0,0.000245,7]
[361903701,1747878641678,-433.509249,0.000245,7]
[361903702,1747878641687,-433.509249,0.000245,7]
[361903703,1747878641696,-330.714814,0.000245,7]
[361903704,1747878641706,-330.714814,0.000245,7]
[361903705,1747878641716,-314.5140147,0.000245,30]
[361903706,1747878641725,-151.0,0.000245,7]
[361903707,1747878641734,-754.454992,0.000245,7]
[361903708,1747878641743,-754.454992,0.000245,7]
[361903709,1747878641752,-151.0,0.000245,7]
[361903710,1747878641762,-1028.881485,0.000245,7]
[361903711,1747878641771,-151.0,0.000245,7]
[361903712,1747878641782,-1028.881485,0.000245,7]
[361903713,1747878641791,-199.124257,0.000245,7]
[361903714,1747878641800,-199.124257,0.000245,7]
[361903715,1747878641809,-500.822398,0.000245,7]
[361903716,1747878641819,-500.822398,0.000245,7]
[361903717,1747878641828,-367.9659344,0.00024547,2]
[361903718,1747878641838,-155.84756444,0.00024548,2]
[361903719,1747878641848,-962.276,0.00024576,2]
[361903720,1747878641859,-3196.77559562,0.00024619,2]
[361903721,1747878641870,-200.05975851,0.00024657,2]
[361903722,1747878641880,-688.4,0.00024657,2]
[361903723,1747878641893,-430.0,0.00024657,2]
[361903724,1747878641903,-450.42,0.00024657,2]
[361903725,1747878641913,-430.0,0.00024657,2]
[361903726,1747878641922,-345.33110242,0.00024657,2]
[361903727,1747878641933,-462.25,0.00024657,2]
[361903728,1747878641944,-430.0,0.00024657,2]
[361903729,1747878641953,-430.0,0.00024657,2]
[361903730,1747878641964,-262.38706392,0.00024657,2]
[361903731,1747878641973,-1061.8,0.00024657,2]
[361903732,1747878641983,-430.0,0.00024657,2]
[361903733,1747878641992,-430.0,0.00024657,2]
[361903734,1747878642002,-1136.78,0.00024657,2]
[361903735,1747878642011,-500.70125954,0.00024657,2]
[361903736,1747878642021,-430.0,0.00024657,2]
[361903737,1747878642031,-430.0,0.00024657,2]
[361903738,1747878642040,-430.0,0.00024657,2]
[361903739,1747878642050,-1491.79,0.00024657,2]
[361903740,1747878642059,-430.0,0.00024657,2]
[361903741,1747878642069,-538.41,0.00024657,2]
[361903742,1747878642079,-728.37,0.00024657,2]
[361903743,1747878642089,-430.0,0.00024657,2]
[361903744,1747878642099,-793.2,0.00024657,2]
[361903745,1747878642108,-317.40224,0.00024657,7]
[361903746,1747878642117,-317.40224,0.00024657,7]
[361903747,1747878642128,-430.0,0.00024657,2]
[361903748,1747878642139,-709.09,0.00024657,2]
[361903749,1747878642149,-1619.68,0.00024657,2]
[361903750,1747878642158,-151.0,0.00024658,7]
[361903751,1747878642168,-151.0,0.00024658,7]
[361903752,1747878642177,-151.0,0.00024658,7]
[361903753,1747878642186,-151.0,0.00024658,2]
[361903754,1747878642195,-151.0,0.00024658,7]
[361903755,1747878642205,-151.0,0.00024658,7]
[361903756,1747878642214,-674.493645,0.00024658,7]
[361903757,1747878642224,-674.493645,0.00024658,7]
[361903758,1747878642233,-151.0,0.00024658,7]
[361903759,1747878642243,-151.0,0.00024658,7]
[361903760,1747878642252,-1501.859909,0.00024658,7]
[361903761,1747878642396,-151.0,0.00024658,7]
[361903762,1747878642406,-172.333961,0.00024658,7]
[361903763,1747878642416,-218.771186,0.00024658,7]
[361903764,1747878642426,-1501.859909,0.00024658,7]
[361903765,1747878642435,-172.333961,0.00024658,7]
[361903766,1747878642445,-210.57423688,0.00024658,2]
[361903767,1747878642454,-500.0,0.00024658,2]
[361903768,1747878642463,-500.0,0.00024658,2]
[361903769,1747878642472,-235.99118518,0.00024658,2]
[361903770,1747878642482,-500.0,0.00024658,2]
[361903771,1747878642491,-500.0,0.00024658,2]
[361903772,1747878642500,-500.0,0.00024658,2]
[361903773,1747878642510,-500.0,0.00024658,2]
[361903774,1747878642519,-500.0,0.00024658,2]
[361903775,1747878642528,-500.0,0.00024658,2]
[361903776,1747878642537,-500.0,0.00024658,2]
[361903777,1747878642547,-500.0,0.00024658,2]
[361903778,1747878642556,-500.0,0.00024658,2]
[361903779,1747878642566,-500.0,0.00024658,2]
[361903780,1747878642575,-180.83567917,0.00024658,2]
[361903781,1747878642584,-500.0,0.00024658,2]
[361903782,1747878642593,-1655.01762931,0.00024659,11]
[361903783,1747878642603,-19818.04040406,0.0002466,7]
[361903784,1747878642612,-19818.04040406,0.0002466,7]
[361903785,1747878642621,-151.182034,0.0002466,7]
[361903786,1747878642631,-151.0,0.0002466,7]
[361903787,1747878642645,-433.509249,0.0002466,7]
[361903788,1747878642655,-433.509249,0.0002466,7]
[361903789,1747878642664,-330.714814,0.0002466,7]
[361903790,1747878642674,-330.714814,0.0002466,7]
[361903791,1747878642684,-151.0,0.0002466,7]
[361903792,1747878642693,-754.454992,0.0002466,7]
[361903793,1747878642703,-754.454992,0.0002466,7]
[361903794,1747878642712,-151.0,0.0002466,7]
[361903795,1747878642722,-1028.881485,0.0002466,7]
[361903796,1747878642732,-151.0,0.0002466,7]
[361903797,1747878642741,-1028.881485,0.0002466,7]
[361903798,1747878642751,-500.822398,0.0002466,7]
[361903799,1747878642761,-500.822398,0.0002466,7]
[361903800,1747878642771,-151.0,0.00024693,7]
[361903801,1747878642780,-151.0,0.00024693,7]
[361903802,1747878642790,-151.0,0.00024693,7]
[361903803,1747878642799,-151.0,0.00024693,7]
[361903804,1747878642809,-151.0,0.00024693,7]
[361903805,1747878642818,-151.0,0.00024693,7]
[361903806,1747878642827,-151.0,0.00024693,7]
[361903807,1747878642837,-151.0,0.00024693,7]
[361903808,1747878642848,-540.769189,0.00024693,7]
[361903809,1747878642858,-540.769189,0.00024693,7]
[361903810,1747878642867,-6398.93,0.000247,7]
[361903811,1747878642877,-14334.52,0.000247,2]
[361903812,1747878642890,-8023.83,0.000247,7]
[361903813,1747878642899,-151.0,0.000247,9]
[361903814,1747878642909,-151.0,0.000247,7]
[361903815,1747878642918,-151.0,0.000247,7]
[361903816,1747878642929,-151.0,0.000247,7]
[361903817,1747878642939,-317.40224,0.000247,7]
[361903818,1747878642949,-199.124257,0.000247,7]
[361903819,1747878642958,-317.40224,0.000247,7]
[361903820,1747878642967,-199.124257,0.000247,7]
[361903821,1747878642977,-807.53574278,0.00024702,2]
[361903822,1747878642987,-800.0,0.00024722,2]
[361903824,1747878642997,-151.0,0.0002474,7]
[361903825,1747878643006,-151.0,0.0002474,7]
[361903827,1747878643015,-1175.46347728,0.0002474,120]
[361903829,1747878643024,-151.0,0.0002474,7]
[361903831,1747878643035,-192971.5422419,0.0002475,2]
[361903833,1747878643046,-151.0,0.0002475,7]
[361903835,1747878643055,-1071.361218,0.0002475,7]
[361903837,1747878643065,-1071.361218,0.0002475,7]
[361903839,1747878643075,-219.384263,0.0002475,7]
[361903841,1747878643084,-151.0,0.0002475,7]
[361903843,1747878643094,-151.0,0.0002475,7]
[361903845,1747878643103,-151.983621,0.0002475,7]
[361903847,1747878643113,-250.547888,0.0002475,7]
[361903849,1747878643122,-250.547888,0.0002475,7]
[361903851,1747878643131,-151.0,0.0002475,7]
[361903853,1747878643142,-151.0,0.0002475,7]
[361903854,1747878643152,-151.0,0.0002475,7]
[361903856,1747878643161,-151.0,0.0002475,7]
[361903857,1747878643170,-151.0,0.0002475,7]
[361903858,1747878643180,-151.0,0.0002475,7]
[361903859,1747878643190,-152.653164,0.0002475,7]
[361903860,1747878643199,-1449.302443,0.0002475,2]
[361903861,1747878643210,-151.0,0.0002475,7]
[361903862,1747878643219,-1449.302443,0.0002475,2]
[361903863,1747878643229,-151.0,0.0002475,7]
[361903864,1747878643239,-151.0,0.0002475,7]
[361903865,1747878643248,-151.0,0.0002475,7]
[361903866,1747878643257,-151.0,0.0002475,7]
[361903867,1747878643267,-151.0,0.0002475,7]
[361903868,1747878643277,-205.122303,0.0002475,7]
[361903869,1747878643287,-151.0,0.0002475,2]
[361903870,1747878643296,-151.0,0.0002475,7]
[361903871,1747878643306,-151.0,0.0002475,7]
[361903872,1747878643315,-151.0,0.0002475,7]
[361903873,1747878643325,-674.493645,0.0002475,7]
[361903874,1747878643335,-151.0,0.0002475,7]
[361903875,1747878643345,-674.493645,0.0002475,7]
[361903876,1747878643356,-151.0,0.0002475,7]
[361903877,1747878643365,-237.151766,0.0002475,7]
[361903878,1747878643375,-151.0,0.0002475,7]
[361903879,1747878643385,-151.0,0.0002475,7]
[361903880,1747878643396,-151.818443,0.0002475,7]
[361903881,1747878643405,-151.0,0.0002475,7]
[361903882,1747878643415,-151.0,0.0002475,7]
[361903883,1747878643424,-151.0,0.0002475,7]
[361903884,1747878643433,-151.0,0.0002475,7]
[361903885,1747878643443,-540.769189,0.0002475,7]
[361903886,1747878643452,-540.769189,0.0002475,7]
[361903887,1747878643461,-1501.859909,0.0002475,7]
[361903888,1747878643471,-151.0,0.0002475,7]
[361903889,1747878643480,-172.333961,0.0002475,7]
[361903890,1747878643489,-1501.859909,0.0002475,7]
[361903891,1747878643499,-172.333961,0.0002475,7]
[361903892,1747878643508,-151.478971,0.0002475,7]
[361903893,1747878643517,-433.509249,0.0002475,7]
[361903894,1747878643527,-433.509249,0.0002475,7]
[361903895,1747878643536,-330.714814,0.0002475,7]
[361903896,1747878643545,-330.714814,0.0002475,7]
[361903897,1747878643555,-151.0,0.0002475,7]
[361903898,1747878643564,-754.454992,0.0002475,7]
[361903899,1747878643573,-754.454992,0.0002475,7]
[361903900,1747878643584,-151.0,0.0002475,7]
[361903901,1747878643593,-1028.881485,0.0002475,7]
[361903902,1747878643603,-151.0,0.0002475,7]
[361903903,1747878643613,-1028.881485,0.0002475,7]
[361903904,1747878643622,-317.40224,0.0002475,7]
[361903905,1747878643633,-199.124257,0.0002475,7]
[361903906,1747878643645,-317.40224,0.0002475,7]
[361903907,1747878643654,-199.124257,0.0002475,7]
[361903908,1747878643664,-500.822398,0.0002475,7]
[361903910,1747878643673,-500.822398,0.0002475,7]
[361903911,1747878643683,-957.00851701,0.00024756,2]
[361903912,1747878643693,-501.29194946,0.00024773,2]
[361903913,1747878643702,-151.0,0.000248,8]
[361903915,1747878643712,-151.0,0.000248,7]
[361903916,1747878643721,-150.0,0.000248,2]
[361903917,1747878643730,-151.0,0.000248,7]
[361903918,1747878643740,-1071.361218,0.000248,7]
[361903919,1747878643749,-1071.361218,0.000248,7]
[361903920,1747878643758,-2359.52765641,0.000248,20]
[361903921,1747878643768,-151.653499,0.000248,7]
[361903922,1747878643777,-151.0,0.000248,7]
[361903923,1747878643787,-151.0,0.000248,7]
[361903924,1747878643797,-250.547888,0.000248,7]
[361903925,1747878643806,-250.547888,0.000248,7]
[361903926,1747878643815,-151.0,0.000248,7]
[361903927,1747878643825,-151.0,0.000248,7]
[361903928,1747878643834,-5605.57088557,0.000248,2]
[361903929,1747878643845,-433.509249,0.000248,7]
[361903930,1747878643857,-433.509249,0.000248,7]
[361903931,1747878643867,-330.714814,0.000248,7]
[361903932,1747878643876,-330.714814,0.000248,7]
[361903933,1747878643886,-151.0,0.000248,7]
[361903934,1747878643898,-35326.621886,0.000248,2]
[361903935,1747878643907,-754.454992,0.000248,7]
[361903936,1747878643918,-754.454992,0.000248,7]
[361903937,1747878643928,-151.0,0.000248,7]
[361903938,1747878643938,-1028.881485,0.000248,7]
[361903939,1747878643948,-151.0,0.000248,7]
[361903940,1747878643957,-1028.881485,0.000248,7]
[361903941,1747878643966,-317.40224,0.000248,7]
[361903942,1747878643976,-199.124257,0.000248,7]
[361903943,1747878643985,-317.40224,0.000248,7]
[361903944,1747878643994,-199.124257,0.000248,7]
[361903945,1747878644004,-500.822398,0.000248,7]
[361903946,1747878644014,-500.822398,0.000248,7]
[361903947,1747878644024,-1655.01762931,0.00024831,12]
[361903948,1747878644033,-500.80269898,0.00024873,2]
[361903949,1747878644043,-501.46429669,0.00024873,2]
[361903950,1747878644053,-502.49010155,0.00024873,2]
[361903951,1747878644062,-202.21487904,0.00024873,2]
[361903952,1747878644072,-500.0,0.00024873,2]
[361903953,1747878644081,-500.0,0.00024873,2]
[361903954,1747878644091,-500.0,0.00024873,2]
[361903955,1747878644100,-155.84756444,0.00024877,2]
[361903956,1747878644110,-151.0,0.000249,2]
[361903957,1747878644120,-151.0,0.000249,8]
[361903958,1747878644129,-315.0,0.000249,3]
[361903959,1747878644141,-315.0,0.000249,3]
[361903960,1747878644151,-315.0,0.000249,3]
[361903961,1747878644160,-151.0,0.000249,7]
[361903962,1747878644170,-315.0,0.000249,3]
[361903963,1747878644180,-315.0,0.000249,3]
[361903964,1747878644189,-207.41138206,0.000249,3]
[361903965,1747878644198,-151.0,0.000249,7]
[361903966,1747878644208,-1071.361218,0.000249,7]
[361903967,1747878644218,-1071.361218,0.000249,7]
[361903968,1747878644228,-151.0,0.000249,7]
[361903969,1747878644238,-151.0,0.000249,7]
[361903970,1747878644247,-250.547888,0.000249,7]
[361903971,1747878644258,-250.547888,0.000249,7]
[361903972,1747878644268,-151.0,0.000249,7]
[361903973,1747878644278,-565.106988,0.000249,7]
[361903974,1747878644288,-151.0,0.000249,7]
[361903975,1747878644298,-151.0,0.000249,7]
[361903976,1747878644308,-151.0,0.000249,7]
[361903977,1747878644317,-151.0,0.000249,7]
[361903978,1747878644327,-1449.302443,0.000249,2]
[361903979,1747878644337,-1449.302443,0.000249,2]
[361903980,1747878644346,-152.692566,0.000249,7]
[361903981,1747878644356,-151.0,0.000249,7]
[361903982,1747878644365,-151.0,0.000249,7]
[361903983,1747878644374,-151.0,0.000249,7]
[361903984,1747878644384,-151.0,0.000249,7]
[361903985,1747878644398,-151.0,0.000249,7]
[361903986,1747878644407,-151.0,0.000249,2]
[361903987,1747878644417,-151.0,0.000249,7]
[361903988,1747878644427,-151.0,0.000249,7]
[361903989,1747878644436,-151.0,0.000249,7]
[361903990,1747878644446,-674.493645,0.000249,7]
[361903991,1747878644456,-151.0,0.000249,7]
[361903992,1747878644466,-674.493645,0.000249,7]
[361903993,1747878644476,-151.0,0.000249,7]
[361903994,1747878644487,-181.031841,0.000249,7]
[361903995,1747878644497,-151.0,0.000249,7]
[361903996,1747878644507,-151.0,0.000249,7]
[361903997,1747878644517,-151.0,0.000249,7]
[361903998,1747878644527,-151.0,0.000249,7]
[361903999,1747878644537,-151.0,0.000249,7]
[361904000,1747878644546,-540.769189,0.000249,7]
[361904001,1747878644685,-540.769189,0.000249,7]
[361904002,1747878644695,-1501.859909,0.000249,7]
[361904003,1747878644705,-151.0,0.000249,7]
[361904004,1747878644715,-172.333961,0.000249,7]
[361904005,1747878644724,-1501.859909,0.000249,7]
[361904006,1747878644734,-172.333961,0.000249,7]
[361904007,1747878644743,-433.509249,0.000249,7]
[361904008,1747878644752,-433.509249,0.000249,7]
[361904009,1747878644762,-330.714814,0.000249,7]
[361904010,1747878644771,-330.714814,0.000249,7]
[361904011,1747878644781,-549255.326826,0.000249,2]
[361904012,1747878644791,-151.0,0.000249,7]
[361904013,1747878644800,-754.454992,0.000249,7]
[361904014,1747878644810,-754.454992,0.000249,7]
[361904015,1747878644819,-151.0,0.000249,7]
[361904016,1747878644828,-1028.881485,0.000249,7]
[361904017,1747878644837,-299.363035,0.000249,7]
[361904018,1747878644848,-1028.881485,0.000249,7]
[361904019,1747878644859,-317.40224,0.000249,7]
[361904020,1747878644869,-199.124257,0.000249,7]
[361904021,1747878644878,-317.40224,0.000249,7]
[361904022,1747878644892,-199.124257,0.000249,7]
[361904023,1747878644901,-500.822398,0.000249,7]
[361904024,1747878644910,-500.822398,0.000249,7]
[361904025,1747878644921,-159.726775,0.00024907,2]
[361904026,1747878644931,-688.4,0.00024931,2]
[361904027,1747878644941,-430.0,0.00024931,2]
[361904028,1747878644951,-450.42,0.00024931,2]
[361904029,1747878644960,-462.25,0.00024931,2]
[361904030,1747878644970,-430.0,0.00024931,2]
[361904031,1747878644979,-430.0,0.00024931,2]
[361904032,1747878644990,-1061.8,0.00024931,2]
[361904033,1747878645007,-387.41,0.00024931,2]
[361904034,1747878645018,-430.0,0.00024931,2]
[361904035,1747878645028,-1136.78,0.00024931,2]
[361904036,1747878645037,-430.0,0.00024931,2]
[361904037,1747878645047,-430.0,0.00024931,2]
[361904038,1747878645056,-430.0,0.00024931,2]
[361904039,1747878645066,-1491.79,0.00024931,2]
[361904040,1747878645075,-430.0,0.00024931,2]
[361904041,1747878645085,-538.41,0.00024931,2]
[361904042,1747878645094,-728.37,0.00024931,2]
[361904043,1747878645104,-430.0,0.00024931,2]
[361904044,1747878645114,-793.2,0.00024931,2]
[361904045,1747878645123,-430.0,0.00024931,2]
[361904046,1747878645133,-709.09,0.00024931,2]
[361904047,1747878645144,-1619.68,0.00024931,2]
[361904048,1747878645154,-5605.57088548,0.00024943,2]
[361904049,1747878645163,-1552.0,0.0002496,120]
[361904050,1747878645173,-1552.0,0.0002497,120]
[361904051,1747878645182,-1552.0,0.0002497,120]
[361904052,1747878645192,-501.84687336,0.00024973,2]
[361904053,1747878645202,-500.90766054,0.00024973,2]
[361904054,1747878645213,-600.0,0.00024973,2]
[361904055,1747878645222,-150.0,0.00024973,2]
[361904056,1747878645232,-500.0,0.00024973,2]
[361904057,1747878645241,-1242.91379029,0.00024978,23]
[361904058,1747878645251,-1552.0,0.0002498,120]
[361904059,1747878645260,-1552.0,0.0002498,120]
[361904060,1747878645270,-151.0,0.0002499,7]
[361904061,1747878645279,-151.0,0.0002499,7]
[361904062,1747878645288,-1071.361218,0.0002499,7]
[361904063,1747878645297,-1071.361218,0.0002499,7]
[361904064,1747878645306,-151.0,0.0002499,7]
[361904065,1747878645316,-151.0,0.0002499,7]
[361904066,1747878645326,-250.547888,0.0002499,7]
[361904067,1747878645336,-250.547888,0.0002499,7]
[361904068,1747878645347,-151.0,0.0002499,7]
[361904069,1747878645356,-565.106988,0.0002499,7]
[361904070,1747878645365,-151.0,0.0002499,7]
[361904071,1747878645374,-55458.33797113,0.00025,30]
[361904072,1747878645383,-520.9844846,0.00025,120]
[361904073,1747878645395,-1001.59542428,0.00025,14]
[361904074,1747878645404,-1152.88918849,0.00025,120]
[361904075,1747878645413,-150.0,0.00025,3]